bitfinex/quotes_ETHUSD_20250730
["timestamp","ask_amount","ask_price","bid_price","bid_amount"]
[1753842761582,0.9078,3813.3,3812.8,4.119]
[1753842761782,0.9078,3813.2,3812.8,4.119]
[1753842762026,0.9078,3813.1,3812.2,0.8133]
[1753842762230,0.8151,3813.2,3812.2,0.8133]
[1753842762386,0.8151,3813.2,3811.9,4.119]
[1753842762387,0.9078,3813.0,3811.9,4.119]
[1753842762728,0.9078,3812.9,3811.9,4.119]
[1753842763132,0.8151,3813.2,3811.9,4.119]
[1753842763357,0.9078,3812.8,3811.9,4.119]
[1753842763907,0.9078,3812.7,3811.9,4.119]
[1753842764226,0.8151,3813.2,3811.9,0.001]
[1753842764227,0.8068,3812.5,3811.9,0.001]
[1753842764396,0.1747386,3812.4,3811.9,0.001]
[1753842764584,0.9078,3812.4,3811.9,0.001]
[1753842764790,0.4572,3812.3,3811.9,0.1322]
[1753842765002,0.9078,3812.3,3811.9,0.1322]
[1753842765203,0.9078,3812.2,3811.9,0.1322]
[1753842765407,0.4506,3812.1,3811.9,0.1322]
[1753842766299,0.4572,3812.1,3811.9,0.1322]
[1753842766626,0.9078,3812.8,3812.1,0.8002]
[1753842766799,0.9078,3812.8,3812.6,0.1312]
[1753842767199,0.002,3813.4,3812.7,0.02622813]
[1753842767522,0.002,3813.4,3812.6,0.607]
[1753842767688,0.002,3813.4,3813.0,0.1312]
[1753842768095,0.9078,3813.3,3813.0,0.1312]
[1753842768291,0.002,3813.4,3813.0,0.1312]
[1753842768511,0.002,3813.4,3813.1,0.02622538]
[1753842768711,0.002,3813.4,3812.7,0.4758]
[1753842769785,0.002,3813.4,3812.4,5.0604]
[1753842771226,0.002,3813.4,3812.4,4.5846]
[1753842771432,0.002,3813.4,3812.5,0.5020295]
[1753842771830,0.002,3813.4,3812.7,0.7547]
[1753842772148,0.002,3813.4,3812.7,3.7547]
[1753842772429,0.002,3813.4,3812.8,0.9444]
[1753842772632,0.002,3813.4,3812.9,0.81272675]
[1753842772793,0.002,3813.4,3812.9,1.75712675]
[1753842772995,0.002,3813.4,3813.0,0.9444]
[1753842773215,0.002,3813.4,3813.0,5.0624]
[1753842773538,0.002,3813.4,3813.1,0.9444]
[1753842773894,0.002,3813.4,3813.0,4.118]
[1753842774098,0.002,3813.4,3813.2,0.9444]
[1753842774298,0.002,3813.4,3813.3,0.026224]
[1753842774527,0.002,3813.4,3813.3,0.9444]
[1753842775734,0.002,3813.4,3813.3,7.33760054]
[1753842776328,0.002,3813.4,3813.3,4.7152]
[1753842776537,0.002,3813.4,3813.3,7.33760054]
[1753842776914,0.002,3813.4,3813.3,4.7152]
[1753842777239,0.002,3813.4,3813.3,8.9552]
[1753842777614,0.002,3813.4,3813.3,8.4866]
[1753842777815,0.002,3813.4,3813.3,8.9552]
[1753842778535,0.002,3813.4,3813.3,9.0864]
[1753842779461,0.002,3813.4,3813.3,8.142]
[1753842779632,0.002,3813.4,3813.3,8.6178]
[1753842779840,0.002,3813.4,3813.3,8.142]
[1753842780063,0.002,3813.4,3813.3,5.142]
[1753842780260,0.002,3813.4,3813.3,4.3712]
[1753842780473,0.9016,3813.4,3813.3,4.3712]
[1753842780772,0.9016,3813.4,3813.3,0.1312]
[1753842780773,1.07024,3813.4,3813.3,0.1312]
[1753842781073,0.7848,3813.3,3812.6,0.1312]
[1753842781369,0.1312,3813.0,3812.5,0.1312]
[1753842781519,0.7848,3813.3,3812.5,4.111]
[1753842781716,0.002,3813.4,3812.9,0.1312]
[1753842781985,0.4613,3813.3,3813.2,0.1312]
[1753842782218,0.002,3813.4,3813.2,0.1312]
[1753842784104,1.6879,3813.3,3813.2,0.1312]
[1753842785844,1.8191,3813.3,3812.8,0.1312]
[1753842786053,1.08171,3813.2,3812.8,0.1312]
[1753842786447,0.18211,3813.2,3812.8,0.1312]
[1753842786772,0.8996,3813.1,3812.8,0.1312]
[1753842786970,0.8996,3813.0,3812.8,0.1312]
[1753842787182,0.9195,3813.3,3812.8,0.1312]
[1753842787183,0.7883,3813.3,3812.8,0.1312]
[1753842787332,0.8996,3813.2,3812.8,0.1312]
[1753842787852,0.8996,3813.1,3812.8,0.1312]
[1753842788161,0.002,3813.4,3813.1,0.1312]
[1753842788368,0.002,3813.4,3812.8,0.4863]
[1753842788579,0.002,3813.4,3813.3,0.1312]
[1753842793870,0.002,3813.4,3813.3,0.157424]
[1753842795258,0.002,3813.4,3813.3,0.1312]
[1753842795938,0.9016,3813.4,3813.3,0.1312]
[1753842796490,0.002,3813.4,3813.3,0.1312]
[1753842797866,0.002,3813.4,3813.3,0.6175]
[1753842798576,0.002,3813.4,3813.3,0.1312]
[1753842801091,0.002,3813.4,3813.3,0.6175]
[1753842801274,0.002,3813.4,3813.3,0.643724]
[1753842801442,0.002,3813.4,3813.3,1.0729]
[1753842802187,0.002,3813.4,3813.3,5.1809]
[1753842802355,0.002,3813.4,3813.3,4.7255]
[1753842805141,0.002,3813.4,3813.3,4.2392]
[1753842805345,0.4403,3813.4,3813.3,4.2392]
[1753842805676,0.9016,3813.4,3813.3,0.1312]
[1753842807272,0.4633,3813.4,3813.3,0.1312]
[1753842807485,0.002,3813.4,3813.3,0.1312]
[1753842810924,0.002,3813.4,3813.3,1.0182]
[1753842811423,0.002,3813.4,3813.3,10.74160054]
[1753842811790,0.002,3813.4,3813.3,8.1192]
[1753842812592,0.002,3813.4,3813.3,12.3592]
[1753842814888,0.002,3813.4,3813.3,11.4682]
[1753842815087,0.9215,3813.4,3813.3,4.3712]
[1753842815487,0.9215,3813.4,3813.3,0.1312]
[1753842818185,1.09541,3813.4,3813.1,0.1322]
[1753842818523,0.9195,3813.3,3813.1,0.1322]
[1753842818896,0.002,3813.4,3813.1,0.1322]
[1753842819096,0.002,3813.4,3813.2,0.15742469]
[1753842819322,0.002,3813.4,3813.2,0.1312]
[1753842820527,0.002,3813.4,3813.3,0.026224]
[1753842820721,0.002,3813.4,3813.3,0.477324]
[1753842820923,0.002,3813.4,3813.3,0.026224]
[1753842821127,0.4789,3813.4,3813.2,0.1312]
[1753842821328,0.9215,3813.4,3813.2,0.236285]
[1753842822217,0.002,3813.4,3813.2,4.334285]
[1753842822754,0.002,3813.4,3813.3,0.026224]
[1753842822932,0.002,3813.4,3813.2,4.785385]
[1753842823253,0.002,3813.4,3813.3,0.4511]
[1753842823867,0.002,3813.4,3813.2,4.334285]
[1753842823868,0.002,3813.4,3813.2,0.236285]
[1753842824070,0.002,3813.4,3813.2,4.330285]
[1753842824418,0.9195,3813.3,3813.2,4.330285]
[1753842824672,0.9195,3813.3,3813.2,4.2252]
[1753842825832,0.4769,3813.3,3813.2,4.2252]
[1753842826553,0.002,3813.4,3813.2,4.2252]
[1753842827232,0.002,3813.4,3813.3,0.026224]
[1753842827841,0.002,3813.4,3813.3,4.266324]
[1753842828381,0.002,3813.4,3813.3,4.2401]
[1753842828850,0.002,3813.4,3813.3,4.266324]
[1753842829372,0.002,3813.4,3813.3,4.371403]
[1753842831094,0.002,3813.4,3813.3,4.345179]
[1753842831574,0.002,3813.4,3813.3,4.781079]
[1753842832376,0.002,3813.4,3813.3,4.345179]
[1753842833372,0.002,3813.4,3813.3,8.585179]
[1753842835074,0.002,3813.4,3813.3,6.96757954]
[1753842835278,0.002,3813.4,3813.3,7.40347954]
[1753842835795,0.002,3813.8,3813.7,2.62212549]
[1753842835969,0.002,3813.8,3813.7,4.083]
[1753842836169,0.8581,3814.9,3813.8,3.55]
[1753842836400,0.042,3814.9,3814.3,2.62169965]
[1753842836595,0.042,3814.9,3814.4,4.9066]
[1753842837198,0.9195,3814.8,3814.4,4.085]
[1753842837399,0.042,3814.9,3814.4,4.085]
[1753842837605,0.9195,3814.7,3814.4,4.085]
[1753842838098,0.4769,3814.6,3814.4,4.085]
[1753842838299,0.9195,3814.6,3814.4,4.085]
[1753842838481,0.9195,3814.6,3814.4,4.5619]
[1753842838902,0.042,3814.9,3814.5,0.02621575]
[1753842839094,0.042,3814.9,3814.6,4.084]
[1753842839267,0.042,3814.9,3814.7,0.02621438]
[1753842839469,0.042,3814.9,3814.8,4.084]
[1753842839780,0.042,3814.9,3814.8,7.8935]
[1753842839978,0.04,3814.9,3814.8,9.3305]
[1753842840202,0.002,3815.3,3814.9,0.55]
[1753842840492,0.002,3815.3,3815.2,3.98059456]
[1753842840691,0.002,3815.3,3815.2,11.0918055]
[1753842841001,0.002,3815.3,3815.2,11.98659456]
[1753842841785,0.04,3815.9,3815.8,6.17068242]
[1753842841988,0.002,3816.3,3816.0,2.6204938]
[1753842842303,0.002,3816.3,3816.2,4.3135]
[1753842842812,0.002,3816.3,3816.2,4.7832]
[1753842843012,0.002,3816.3,3816.2,4.3135]
[1753842844487,0.002,3816.3,3816.0,4.24]
[1753842844691,0.002,3816.3,3816.2,4.082]
[1753842845003,0.002,3816.3,3816.2,4.10820407]
[1753842845313,0.469,3816.3,3816.0,4.24]
[1753842845498,0.002,3816.3,3816.1,4.081]
[1753842845700,0.002,3816.3,3816.2,0.02620407]
[1753842845897,0.002,3816.3,3816.2,0.1312]
[1753842846212,0.002,3816.3,3816.2,4.9714]
[1753842846618,0.002,3816.3,3816.2,5.758805]
[1753842848014,0.002,3816.3,3816.2,8.37921273]
[1753842848379,0.042,3816.9,3816.5,3.55]
[1753842848722,0.042,3816.9,3816.8,6.1699958]
[1753842848893,0.042,3816.9,3816.8,11.1830958]
[1753842849221,0.042,3816.9,3816.8,11.6527958]
[1753842849391,0.042,3816.9,3816.8,8.5631]
[1753842849978,0.042,3816.9,3816.8,9.0346]
[1753842851499,0.8217,3818.3,3816.8,9.0346]
[1753842851674,0.9385,3817.8,3817.0,0.55]
[1753842851882,0.9385,3817.8,3817.1,4.079]
[1753842852313,0.9385,3817.8,3817.1,4.866212]
[1753842853446,0.7785,3817.6,3816.6,3.0]
[1753842853687,0.7785,3817.6,3816.4,0.8141]
[1753842853688,1.1102,3817.5,3816.7,4.077]
[1753842853810,0.9385,3817.4,3816.8,4.078]
[1753842854004,0.9385,3817.3,3816.9,4.079]
[1753842854236,0.7785,3817.6,3816.6,0.787399]
[1753842854237,0.7785,3817.6,3817.0,4.079]
[1753842854441,0.9385,3817.2,3817.0,4.079]
[1753842854599,0.9385,3817.1,3816.6,0.787399]
[1753842854805,0.9385,3817.0,3816.7,4.078]
[1753842855006,1.7576,3816.9,3816.8,4.079]
[1753842855532,0.4715,3817.2,3816.8,4.079]
[1753842855846,4.119,3818.9,3816.9,1.0197]
[1753842855847,0.7885,3818.0,3816.9,1.0197]
[1753842856002,0.9385,3817.8,3817.0,7.08]
[1753842857817,0.7885,3818.0,3817.1,1.0197]
[1753842858443,0.9385,3818.2,3817.3,1.344]
[1753842858651,0.9385,3818.2,3817.4,4.081]
[1753842859009,0.9385,3818.2,3817.4,4.5507]
[1753842859430,0.002,3817.8,3817.5,0.787158]
[1753842859938,0.9405,3817.8,3817.6,4.24]
[1753842860106,0.9405,3817.8,3817.7,4.08]
[1753842860308,0.9405,3817.8,3817.7,8.32]
[1753842860841,0.9405,3817.8,3817.7,4.08]
[1753842861637,0.9405,3817.8,3817.7,4.2112]
[1753842861832,0.002,3817.8,3817.7,4.2112]
[1753842862266,0.4735,3817.8,3817.7,4.2112]
[1753842862564,0.002,3817.8,3817.7,4.2112]
[1753842862725,0.002,3817.8,3817.7,4.23739378]
[1753842862920,0.002,3817.8,3817.7,4.2112]
[1753842863120,0.002,3817.8,3817.7,4.23739378]
[1753842863322,0.002,3817.8,3817.7,12.94839378]
[1753842863518,0.5115,3818.9,3817.8,3.0]
[1753842863771,0.5115,3818.9,3817.8,11.60570955]
[1753842864128,0.04,3818.9,3818.5,3.8155]
[1753842864354,0.04,3818.9,3818.6,9.3367]
[1753842864529,0.04,3818.9,3818.8,0.1312]
[1753842864729,0.04,3818.9,3818.8,4.2102]
[1753842866531,0.04,3818.9,3818.8,4.23638623]
[1753842866741,0.04,3818.9,3818.8,4.6799]
[1753842866951,0.04,3818.9,3818.8,8.6812]
[1753842868581,0.04,3818.9,3818.8,7.7602]
[1753842869083,0.04,3818.9,3818.8,8.2299]
[1753842869791,0.04,3818.9,3818.8,8.6812]
[1753842870085,0.04,3818.9,3818.8,8.2299]
[1753842870287,0.04,3818.9,3818.8,7.076]
[1753842870581,0.04,3818.9,3818.8,7.5312]
[1753842871134,0.04,3818.9,3818.8,7.076]
[1753842871744,0.04,3818.9,3818.8,11.316]
[1753842872627,0.04,3818.9,3818.8,12.102915]
[1753842872941,0.9376,3818.9,3818.8,8.327]
[1753842873350,1.6984,3818.9,3818.8,4.24]
[1753842873663,0.04,3818.9,3818.8,8.325]
[1753842874994,0.04,3818.9,3818.8,12.8046]
[1753842875145,0.04,3818.9,3818.8,15.42322365]
[1753842875338,0.04,3818.9,3818.8,12.3302]
[1753842875548,0.04,3818.9,3818.8,15.42322365]
[1753842876284,0.04,3819.9,3819.3,3.0]
[1753842876489,0.04,3819.9,3819.2,2.61833877]
[1753842876490,0.04,3819.9,3819.4,4.086]
[1753842876851,0.04,3819.9,3819.4,4.5412]
[1753842877591,0.04,3819.9,3819.5,1.0052]
[1753842877910,0.04,3819.9,3819.6,7.52515792]
[1753842878068,0.04,3819.9,3819.6,4.9071]
[1753842878266,0.04,3819.9,3819.6,5.3623]
[1753842879156,0.04,3819.9,3819.8,6.16793811]
[1753842879354,0.04,3819.9,3819.8,10.24993811]
[1753842879586,0.04,3819.9,3819.8,11.17953811]
[1753842880282,0.04,3819.9,3819.8,8.2184]
[1753842880482,0.04,3819.9,3819.8,7.2132]
[1753842880676,0.04,3819.9,3819.8,7.7632]
[1753842880988,0.04,3819.9,3819.8,11.31073811]
[1753842881802,0.042,3819.9,3819.8,11.31073811]
[1753842881992,0.11441,3820.8,3819.8,11.31073811]
[1753842881993,0.11441,3820.8,3820.6,0.55]
[1753842882195,0.11441,3820.8,3820.7,7.2132]
[1753842883262,1.01201,3820.8,3820.7,0.1312]
[1753842883623,1.01201,3820.8,3820.7,4.2132]
[1753842883836,1.01201,3820.8,3820.7,4.6635]
[1753842883974,1.01201,3820.8,3820.7,4.2132]
[1753842884679,1.76771,3820.8,3820.7,4.2132]
[1753842885772,1.76771,3820.8,3820.7,0.1312]
[1753842886076,0.8313,3820.7,3820.4,4.2122]
[1753842886269,1.7289,3820.7,3820.4,0.1312]
[1753842886471,1.7289,3820.6,3820.4,0.1312]
[1753842886676,0.8976,3820.5,3820.4,0.1312]
[1753842888312,0.11441,3820.8,3820.4,0.1312]
[1753842888530,0.11441,3820.8,3820.7,0.1312]
[1753842889372,1.01201,3820.8,3820.7,0.1312]
[1753842889708,1.01201,3820.8,3820.7,4.2122]
[1753842890430,1.79671,3820.8,3820.7,0.1312]
[1753842891324,1.79671,3820.8,3820.6,0.1312]
[1753842891527,0.4503,3820.7,3820.6,0.1312]
[1753842891730,0.8976,3820.7,3820.6,0.1312]
[1753842892231,0.89911,3820.8,3820.6,0.1312]
[1753842892410,0.11441,3820.8,3820.6,0.1312]
[1753842893452,1.6571,3820.7,3820.6,0.1312]
[1753842901560,0.7595,3820.7,3820.6,0.1312]
[1753842901836,1.6904,3820.7,3820.6,0.1312]
[1753842902951,1.6904,3820.7,3819.5,3.0]
[1753842902952,0.7677,3820.6,3819.5,4.24]
[1753842903255,0.7677,3820.4,3819.5,4.074]
[1753842903431,1.10403182,3820.3,3819.9,0.001]
[1753842903748,0.9309,3820.3,3819.9,0.001]
[1753842903973,1.79072079,3820.2,3819.9,0.001]
[1753842904263,0.9309,3820.1,3819.9,0.001]
[1753842904572,0.8271,3820.0,3819.9,0.001]
[1753842904716,1.9338,3820.0,3819.9,0.001]
[1753842904914,1.0029,3820.0,3819.9,0.001]
[1753842905119,1.758,3820.0,3819.9,0.001]
[1753842905567,32.308,3820.0,3819.9,0.001]
[1753842905722,0.55,3819.7,3818.1,0.04]
[1753842905918,0.8097,3819.2,3818.1,0.04]
[1753842906136,0.8097,3819.0,3818.1,0.04]
[1753842906429,0.8097,3818.8,3818.1,0.04]
[1753842906917,0.9309,3818.7,3818.1,0.04]
[1753842907347,0.9309,3818.6,3818.1,0.04]
[1753842907773,1.6982,3818.5,3818.1,0.04]
[1753842908268,0.9309,3818.4,3818.1,0.04]
[1753842908923,0.7673,3818.5,3818.1,0.04]
[1753842909128,0.9309,3818.4,3818.1,0.04]
[1753842909528,0.9309,3818.3,3818.1,0.04]
[1753842910375,0.9309,3818.2,3818.1,0.04]
[1753842912146,1.87082,3818.2,3818.1,0.04]
[1753842912800,2.00202,3818.2,3818.1,0.04]
[1753842913304,1.2526,3818.2,3818.1,0.04]
[1753842913503,1.701,3818.2,3818.1,0.04]
[1753842914166,1.73373793,3818.2,3818.1,0.04]
[1753842914600,1.701,3818.2,3818.1,0.04]
[1753842915874,1.73373793,3818.2,3818.1,0.04]
[1753842916080,1.90039118,3818.2,3818.1,0.04]
[1753842919321,1.701,3818.2,3818.1,0.04]
[1753842921892,0.7701,3818.2,3818.1,0.04]
[1753842922222,0.7647,3818.6,3818.1,0.5387]
[1753842922539,0.9309,3818.5,3818.1,0.04]
[1753842922827,0.18268,3818.4,3818.1,0.04]
[1753842922993,0.63108,3818.4,3818.1,0.04]
[1753842923187,0.66518,3818.4,3818.1,0.04]
[1753842923408,0.9309,3818.3,3818.1,0.04]
[1753842923627,0.03273793,3818.2,3818.1,0.04]
[1753842923806,0.16393708,3818.3,3818.1,0.04]
[1753842924007,0.9309,3818.2,3818.1,0.04]
[1753842925314,0.7861,3818.2,3818.1,0.04]
[1753842925623,1.717,3818.2,3818.1,0.04]
[1753842925823,1.2686,3818.2,3818.1,0.04]
[1753842926223,1.717,3818.2,3818.1,0.041]
[1753842926831,0.7861,3818.2,3818.1,0.041]
[1753842927033,5.02614035,3818.6,3818.1,0.041]
[1753842927203,0.1312,3818.5,3818.1,0.041]
[1753842927535,0.8268,3819.0,3818.5,0.1312]
[1753842927745,3.0,3819.0,3818.5,0.1312]
[1753842927949,3.0,3819.0,3818.6,0.4987]
[1753842928428,3.0,3819.0,3818.5,0.1312]
[1753842928429,4.77854,3819.0,3818.5,0.1312]
[1753842928835,4.33014,3819.0,3818.5,0.1312]
[1753842929046,3.84764,3819.0,3818.5,0.1312]
[1753842929244,3.0,3819.0,3818.5,0.1312]
[1753842929544,0.9309,3819.0,3818.5,0.1312]
[1753842929745,3.9309,3819.0,3818.5,0.1312]
[1753842930053,0.4825,3818.9,3818.5,0.1312]
[1753842930526,0.8051,3818.7,3818.1,0.041]
[1753842930713,0.1312,3818.3,3818.1,0.041]
[1753842930917,0.8051,3818.2,3818.1,0.041]
[1753842931753,0.1312,3818.3,3818.1,0.041]
[1753842933753,4.07,3818.7,3818.1,0.1722]
[1753842933956,4.07,3818.7,3818.2,0.459]
[1753842934249,4.07,3818.7,3818.3,0.459]
[1753842935455,0.1312,3818.8,3818.4,0.459]
[1753842935647,3.0,3818.9,3818.5,0.1312]
[1753842936493,0.1312,3819.0,3818.5,0.1312]
[1753842936679,3.0,3818.9,3818.5,0.1312]
[1753842937399,0.1312,3819.0,3818.6,0.8225]
[1753842937696,0.8225,3819.6,3818.8,0.1312]
[1753842937697,5.0237,3819.6,3818.8,0.1312]
[1753842937856,3.0,3819.5,3818.8,0.1312]
[1753842938056,3.0,3819.5,3819.1,0.1312]
[1753842938470,0.9354,3819.4,3819.1,0.1312]
[1753842938873,0.9354,3819.3,3819.1,0.1312]
[1753842939191,5.0237,3819.6,3819.1,0.1312]
[1753842939489,4.2012,3819.6,3819.1,0.1312]
[1753842939682,4.2012,3819.6,3819.1,0.5902]
[1753842940212,0.9354,3819.5,3819.1,0.1312]
[1753842940397,3.9354,3819.5,3818.3,0.7839]
[1753842940573,0.1312,3819.1,3818.6,0.1312]
[1753842940753,4.2012,3819.3,3818.6,0.1312]
[1753842941402,0.4927,3819.2,3818.6,0.1312]
[1753842941555,0.9354,3819.2,3818.6,0.1312]
[1753842941762,4.2012,3819.3,3818.6,0.1312]
[1753842941996,0.1312,3819.0,3818.5,0.1312]
[1753842942182,0.9354,3819.1,3818.1,0.041]
[1753842942183,0.1312,3818.8,3818.2,0.1312]
[1753842942501,0.1312,3818.3,3818.1,0.041]
[1753842942791,0.80033793,3818.2,3818.1,0.041]
[1753842942999,1.703,3818.2,3818.1,0.041]
[1753842944898,0.1312,3818.6,3818.1,0.9298]
[1753842945101,0.1312,3818.8,3818.2,0.459]
[1753842945261,4.069,3818.7,3818.2,0.459]
[1753842945670,4.069,3818.7,3818.1,0.9298]
[1753842949795,0.4927,3818.6,3818.1,0.9298]
[1753842949998,0.9354,3818.5,3818.1,0.9298]
[1753842950213,0.9354,3818.4,3818.1,0.1722]
[1753842950636,0.03273708,3818.3,3818.1,0.041]
[1753842950940,1.706,3818.2,3818.1,0.041]
[1753842951142,9.51199371,3818.2,3818.1,0.041]
[1753842951324,3.16930955,3817.8,3817.7,0.001]
[1753842951539,7.10385091,3817.8,3817.7,0.001]
[1753842951725,8.00650955,3817.8,3817.7,0.001]
[1753842952118,38.00650955,3817.8,3817.7,0.001]
[1753842952415,40.57677416,3817.8,3817.7,0.001]
[1753842952616,44.64577416,3817.8,3817.7,0.001]
[1753842953246,47.41477416,3817.8,3817.7,0.001]
[1753842954351,44.64577416,3817.8,3817.7,0.001]
[1753842954553,37.95746461,3817.8,3817.7,0.001]
[1753842954722,42.02646461,3817.8,3817.7,0.001]
[1753842954916,41.47746461,3817.8,3817.7,0.001]
[1753842955344,42.02746461,3817.8,3817.7,0.001]
[1753842955777,37.95746461,3817.8,3817.7,0.001]
[1753842956078,41.47746461,3817.8,3817.7,0.001]
[1753842956364,11.47746461,3817.8,3817.7,0.001]
[1753842956538,8.9072,3817.8,3817.7,0.001]
[1753842957121,9.4572,3817.8,3817.7,0.001]
[1753842958371,5.3872,3817.8,3817.7,0.001]
[1753842958558,9.4572,3817.8,3817.7,0.001]
[1753842962224,4.4518,3817.8,3817.7,0.001]
[1753842962431,9.87338,3817.8,3817.7,0.001]
[1753842962760,8.41698,3817.8,3817.7,0.001]
[1753842962972,7.64638,3817.8,3817.7,0.001]
[1753842963354,7.2012,3817.8,3817.7,0.001]
[1753842964678,3.1312,3817.8,3817.7,0.001]
[1753842964864,4.07,3817.8,3817.7,0.4725]
[1753842965180,4.07,3817.8,3817.7,0.9431]
[1753842965635,0.8232,3819.5,3817.8,0.8232]
[1753842965975,0.1312,3818.6,3818.2,0.8232]
[1753842966136,4.2012,3818.6,3818.3,0.9421]
[1753842966341,4.2012,3818.6,3818.4,0.4715]
[1753842966538,4.07,3818.6,3818.5,0.4715]
[1753842966848,4.07,3818.6,3818.5,0.9421]
[1753842967248,0.1312,3818.9,3818.5,0.9421]
[1753842967448,0.781,3819.8,3818.6,0.9421]
[1753842967658,0.1312,3819.2,3818.8,0.7866]
[1753842967867,4.07,3819.3,3819.1,0.1312]
[1753842968053,3.0,3819.2,3819.1,0.1312]
[1753842968251,3.0,3819.2,3818.8,0.7866]
[1753842968453,0.1312,3819.2,3818.8,0.7866]
[1753842968650,4.2012,3819.2,3818.8,1.2581]
[1753842969139,1.73393022,3819.1,3818.4,0.9371]
[1753842969339,0.1312,3818.9,3818.4,0.8059]
[1753842969582,0.03273279,3818.8,3818.3,0.1312]
[1753842969740,0.03273279,3818.8,3818.1,1.2815]
[1753842969741,4.833452,3818.9,3818.2,0.1312]
[1753842969947,4.833452,3818.9,3818.3,0.4715]
[1753842970286,4.833452,3818.9,3818.2,0.1312]
[1753842970633,4.86618393,3818.9,3818.2,0.1312]
[1753842971176,1.51939839,3818.8,3818.2,0.1312]
[1753842971361,1.51939839,3818.8,3818.1,0.001]
[1753842971562,0.1312,3818.5,3818.1,0.001]
[1753842971767,4.2002,3818.5,3818.1,0.001]
[1753842972974,4.069,3818.5,3818.1,0.001]
[1753842973210,0.1312,3818.3,3818.1,0.001]
[1753842974205,0.9064,3818.2,3818.1,0.001]
[1753842975307,4.069,3818.2,3818.1,0.001]
[1753842975709,0.1312,3818.3,3818.1,0.001]
[1753842975913,4.069,3818.2,3818.1,0.001]
[1753842976115,0.1312,3818.3,3818.1,0.001]
[1753842976274,4.069,3818.5,3818.2,1.2844]
[1753842976480,4.069,3818.7,3818.3,0.9421]
[1753842976694,4.069,3818.7,3818.2,0.8129]
[1753842976892,3.93913451,3818.6,3818.1,0.001]
[1753842977111,0.1312,3818.4,3818.1,0.001]
[1753842977420,4.069,3818.3,3818.1,0.001]
[1753842977587,0.1312,3818.2,3818.1,0.001]
[1753842978213,1.0376,3818.2,3818.1,0.001]
[1753842978414,4.07033793,3818.2,3818.1,0.001]
[1753842978807,4.0376,3818.2,3818.1,0.001]
[1753842979016,5.01211355,3818.2,3818.1,0.001]
[1753842979706,5.17471355,3818.2,3818.1,0.001]
[1753842979908,4.2002,3818.2,3818.1,0.001]
[1753842980243,0.1312,3818.2,3818.1,0.001]
[1753842980440,7.2002,3818.2,3818.1,0.001]
[1753842982839,3.1312,3818.2,3818.1,0.001]
[1753842983341,4.2002,3818.2,3818.1,0.001]
[1753842983532,0.1312,3818.2,3818.1,0.001]
[1753842983735,4.069,3818.2,3818.1,0.001]
[1753842985199,4.069,3818.3,3818.1,0.4725]
[1753842986003,4.48902,3818.3,3818.1,0.001]
[1753842986203,5.39542,3818.3,3818.1,0.001]
[1753842986405,0.03273793,3818.2,3818.1,0.001]
[1753842986724,5.39542,3818.3,3818.1,0.001]
[1753842986925,0.03273793,3818.2,3818.1,0.001]
[1753842987125,0.469,3818.2,3818.1,0.001]
[1753842987442,4.069,3818.3,3818.1,0.001]
[1753842988509,0.9064,3818.2,3818.1,0.001]
[1753842988722,0.93913793,3818.2,3818.1,0.001]
[1753842989106,5.21033379,3818.2,3818.1,0.001]
[1753842989312,5.34153379,3818.2,3818.1,0.001]
[1753842991143,0.64513379,3818.2,3818.1,0.001]
[1753842991456,5.1404,3818.2,3818.1,0.001]
[1753842992130,5.1424,3818.2,3818.1,0.001]
[1753842993153,4.2012,3818.2,3818.1,0.001]
[1753842993314,0.1332,3818.2,3818.1,0.001]
[1753842993517,7.2012,3818.2,3818.1,0.001]
[1753842993753,7.97075,3818.2,3818.1,0.001]
[1753842994330,7.2012,3818.2,3818.1,0.001]
[1753842995150,8.1424,3818.2,3818.1,0.001]
[1753842995924,7.2012,3818.2,3818.1,0.001]
[1753842997213,0.002,3818.2,3818.1,0.457]
[1753842997417,0.002,3818.2,3818.1,1.07469103]
[1753842997659,0.002,3818.2,3818.1,1.8532]
[1753842997842,0.002,3818.2,3818.1,1.87939103]
[1753842998054,0.002,3818.2,3818.1,1.8532]
[1753843000665,0.002,3818.2,3818.1,0.9369]
[1753843000864,0.002,3818.2,3818.1,0.1322]
[1753843001084,0.9432,3818.2,3818.1,0.001]
[1753843001288,1.12317354,3818.2,3818.1,0.001]
[1753843002566,1.15591147,3818.2,3818.1,0.001]
[1753843002764,1.12317354,3818.2,3818.1,0.001]
[1753843002938,1.15591147,3818.2,3818.1,0.001]
[1753843003272,1.12317354,3818.2,3818.1,0.001]
[1753843003425,1.91147354,3818.2,3818.1,0.001]
[1753843004274,5.97847354,3818.2,3818.1,0.001]
[1753843005170,0.002,3818.2,3818.1,0.001]